[Event "EU-ch 12th"]
[Site "Aix les Bains"]
[Date "2011.03.22"]
[Round "1"]
[White "Zhigalko, Sergei"]
[Black "Nedilko, Vasily"]
[Result "1-0"]
[ECO "B90"]
[WhiteElo "2680"]
[BlackElo "2413"]
[Annotator "Marchand,A/Primel,D"]
[PlyCount "95"]
[EventDate "2011.03.22"]
[EventType "swiss"]
[EventRounds "11"]
[EventCountry "FRA"]
[SourceTitle "CBM 142 Extra"]
[Source "ChessBase"]
[SourceDate "2011.06.27"]
[SourceVersion "1"]
[SourceVersionDate "2011.06.27"]
[SourceQuality "1"]
[TimeControl "40/5400+30:1800+30"]

1. e4 c5 2. Nf3 d6 3. d4 cxd4 4. Nxd4 Nf6 5. Nc3 a6 6. Be3 e5 (6... e6) 7. Nb3 (7. Nf3) 7... Be7 (7... Be6 8. f3 (8. Nd5 Nbd7 9. f3 Bxd5 10. exd5 b5 11. a4 b4 12. a5 Qc7 13. Qd2 Qb7 14. Bc4 Rc8 15. Qd3 Rxc4 (15... Nb8 16. Ra4 Nfd7 (16... Rxc4 17. Qxc4 Nxd5) 17. Bb6 Nc5 $13 {Muratov}) 16. Qxc4 Nxd5 17. Bd2 {1-0 Lukin,A (2430)-Zilberstein,V (2350) URS-ch otbor56 Blagoveshchensk 1988}) 8... h5) 8. f3 (8. Qd2 {[%cal Ge1c1]} Be6 9. O-O-O O-O 10. f4 b5 11. Be2 Nbd7 12. f5 Bc4 13. g4 Bxe2 {0-1 Flynn,C-Leskiewicz,M (2170) Redcliffe Challenge 1995} (13... Rc8 14. g5 b4 15. Bxc4 bxc3 16. Qxc3 Nxe4 $132)) 8... Be6 9. Qd2 O-O 10. O-O-O a5 {[%cal Ga5a4]} (10... Nbd7 {La ligne principale} 11. g4 Qc7 12. g5 (12. Kb1 $142)) 11. a4 {[%csl Rb4] Résoud le problème de la poussée a5a4 mais en contrepartie, les Blancs concèdent un trou en "b4"} (11. Bb5 $5 {[%csl Ga4] La grande ligne} Nbd7 {0-1 Delorme,A (2257)-Carlsson,P (2515) Rohde op 08th Sautron 2008 (2)} (11... Na6 12. Qe2 Qb8 13. g4 Rc8 14. g5 Ne8 15. Kb1 Nec7 $132 {0-1 Karjakin,S (2739)-Grischuk,A (2760) World Cup ACP 4th Odessa rapid 2010 (3.1)})) 11... Nc6 (11... Na6 $5 {L'alternative} 12. g4 {1-0 Zhigalko,S (2680)-Kadric,D (2379) EU-ch 12th Aix-les-Bains 2011 (3)}) 12. g4 Nb4 13. Kb1 Rc8 (13... d5 {Tentant pour profiter du b4 mais c'est probablemnt douteux} 14. g5 $1 Nxe4 15. fxe4 d4 16. Nxd4 exd4 17. Bxd4) 14. g5 (14. h4) 14... Nh5 {La pratique a montré que le h5 est un bon défenseur de l'aile-roi} (14... Nd7 15. f4 exf4 16. Bxf4 {[%csl Rd6]} Nc5 17. Nd4 $14 {1/2 Gopal,G (2555)-Baklan,V (2627) Pfalz op 2nd Neustadt an der Weinstrasse 2009 (9)}) 15. Rg1 f5 16. g6 $5 $146 (16. gxf6 Rxf6 17. Bg5 d5 18. Bxf6 Nxf6 19. Qh6 Bf8 20. Qg5 d4 21. Qxe5 Qe7 22. Nd5 Nfxd5 23. exd5 Bxd5 24. Qxe7 Bxe7 25. Nxd4 Bf6 26. Bh3 Re8 27. c3 Nc6 28. Nf5 Bxf3 29. Rd7 g6 30. Bg2 Ne5 {Quesada Perez,Y (2582)-Ortiz Suarez,I (2544)/Havana 2010/1-0 (36)}) 16... fxe4 (16... h6 17. Bh3 $36 {[%csl Re6,Rf5]}) (16... hxg6 $5 17. Rxg6 (17. Bh3 Qe8) 17... Rf6 18. Rg1 (18. Qg2 Qe8 $132) 18... f4 19. Bf2 Rf8 $132 (19... Rh6 {[%cal Gh6h2] Joué quelques mois plus tard mais la position de la h6 est bizarre} 20. Nc1 Nf6 21. h4 $13 {0-1 Sukandar,I (2362)-Xiu,D (2525) Jakarta Indonesia op 2nd 2012 (7)})) 17. gxh7+ Kxh7 (17... Kh8 $5 {Un thème tactique courant dans ce genre de sicilienne ouverte avec attaque sur les ailes opposées est de ne pas reprendre immédiatement le  et par rapport а la partie, les Noirs auront des ressources tactiques supplémentaires.} 18. fxe4 Nf4 19. Be2 d5 20. Bxf4 (20. exd5 Nfxd5 $132 (20... Bf5 21. Bxf4 Bxc2+ 22. Qxc2 Nxc2 23. Bxe5 {[%csl Rg7]} Na3+ $1 {[%csl Rc3]} 24. bxa3 Bf6 25. Bxf6 Qxf6 26. Ne4 $13)) 20... Rxf4) 18. fxe4 Nf4 19. Be2 d5 {[%cal Gf4d5,Gb4d5] Risqué mais logique} (19... Rf6) (19... Qe8) (19... Kg8) 20. exd5 (20. Bg4 {[%csl Rh7]} Bxg4 (20... Qd7 $6 21. Bxe6 Qxe6 22. exd5 Nfxd5 23. Qg2) 21. Rxg4 {[%csl Rh7]} dxe4 (21... d4 22. Bxf4 dxc3 23. Rxg7+ $3 {[%cal Gd2g2,Gd1d8]}) (21... Bf6 {[%cal Gf6g7]} 22. Bxf4 exf4 23. Rxf4 d4 (23... Bxc3 24. Rxf8) 24. Qg2 Qc7 25. Qh3+ Kg8 26. Qe6+) 22. Bxf4 Rxf4 (22... exf4 23. Qg2) 23. Qg2 {[%cal Gd1d8,Gg2h3,Gg4g7]} Qf8 24. Rg1 $36) 20... Bf5 {[%csl Rc2][%cal Gf5b1]} 21. Bxf4 $3 {Un superbe sacrifice de } Bxc2+ 22. Qxc2+ Nxc2 23. Bd3+ $1 Kh8 (23... e4 24. Bxe4+ Kh8 25. Be5 Na3+ 26. bxa3 Bf6) 24. Bxe5 {[%csl Rg7][%cal Re5g7]} Na3+ $1 25. bxa3 Bf6 $13 {[%cal Gc8c3] Les pièces Blanches sont trés actives mais le  Blanc est assez exposé.} 26. Bxf6 Rxf6 (26... Qxf6 27. Ne4) 27. Rc1 Rf3 (27... Kg8) (27... Rf2 28. Ne4) 28. Rgd1 $1 {[%cal Gd1d5]} g6 (28... Qb6 29. Nb5) (28... Qg5 29. Nd4) (28... Qe7) (28... Qh4 29. d6 $14 {[%csl Gd6]}) 29. Nd4 {[%cal Gd4f3,Gd4e6]} Rh3 30. Ndb5 $1 {[%csl Gb5][%cal Gb5c3,Gd5d6]} Rxh2 $6 (30... Kg7 {[%cal Gh3h2,Gg6g5] Résistait un peu mieux}) 31. Bxg6 {Elimine un candidat а la promotion et les Noirs n'ont plus aucun contre-jeu.} Qf6 32. Bd3 Qf3 (32... Rg8 {[%cal Gg8g2]}) 33. d6 $40 Qg4 34. Be4 Qe6 35. Bd5 Qf5+ 36. Be4 Qe6 37. Rd5 Rf8 38. d7 Rd8 39. Rcd1 Qf6 40. Bf5 Qh4 41. R5d2 Rxd2 42. Rxd2 Qg5 43. Rd5 Kg7 44. Nd4 Qg1+ 45. Kb2 Kf6 46. Rd6+ Ke7 47. Re6+ Kf7 48. Bg6+ {[%mdl 512]} 1-0

[Event "EU-ch 12th"]
[Site "Aix les Bains"]
[Date "2011.03.24"]
[Round "3"]
[White "Zhigalko, Sergei"]
[Black "Kadric, Denis"]
[Result "1-0"]
[ECO "B90"]
[WhiteElo "2680"]
[BlackElo "2379"]
[Annotator "ChessBase II"]
[PlyCount "69"]
[EventDate "2011.03.22"]
[EventType "swiss"]
[EventRounds "11"]
[EventCountry "FRA"]
[SourceTitle "CBM 142 Extra"]
[Source "ChessBase"]
[SourceDate "2011.06.27"]
[SourceVersion "1"]
[SourceVersionDate "2011.06.27"]
[SourceQuality "1"]
[TimeControl "40/5400+30:1800+30"]

1. e4 c5 2. Nf3 d6 3. d4 cxd4 4. Nxd4 Nf6 5. Nc3 a6 6. Be3 e5 (6... e6) 7. Nb3 Be7 (7... Be6 8. h3 Nbd7 9. g4 Rc8 10. Qd2 b5 11. O-O-O Be7 (11... Nb6)) 8. f3 Be6 9. Qd2 O-O 10. O-O-O a5 (10... b5 11. g4 Nbd7 (11... b4 12. Na4 Nbd7) (11... h6 12. h4 b4)) 11. a4 (11. Bb5) 11... Na6 (11... h5 $5 {Tuncer YB 99}) 12. g4 Nb4 13. g5 Nh5 14. Rg1 Rc8 (14... f5 15. h4 Rc8 16. Bb5 Kh8 17. Kb1 fxe4 18. fxe4 d5 19. Qh2 Nf4 20. Rgf1 Bd6 21. Bxf4 exf4 22. exd5 Bg4 23. Rde1 f3 24. Qf2 Bh3 25. Rg1 Bf5 26. Ne4 Rxc2 27. Qxf3 Be5 28. Rg2 Bg6 29. Qxf8+ {Vallejo Pons,F (2696)-Morozevich,A (2750)/ Novi Sad 2009/CBM 133/0-1 (32)}) 15. Kb1 Qc7 (15... f5 16. g6 fxe4 17. gxh7+ Kxh7 18. fxe4 Nf4 19. Be2 d5 20. exd5 Bf5 21. Bxf4 Bxc2+ 22. Qxc2+ Nxc2 23. Bd3+ Kh8 24. Bxe5 Na3+ 25. bxa3 Bf6 26. Bxf6 Rxf6 27. Rc1 Rf3 28. Rgd1 g6 29. Nd4 Rh3 30. Ndb5 {Zhigalko,S (2680)-Nedilko,V (2413)/Aix-les-Bains 2011/ CBM 142/1-0 (48)}) 16. Qf2 Nf4 $146 (16... f5 17. Bb6 Qb8 18. Bxa5 Nc6 19. exf5 Bxb3 20. cxb3 Nxa5 21. Nd5 Bd8 22. f6 Nxb3 23. Qh4 Qa7 24. Bh3 Qxg1 25. Rxg1 Nd2+ 26. Ka2 Rc4 27. Be6+ Kh8 28. Rg4 e4 29. Nc3 Nxf6 30. gxf6 Bxf6 31. Qf2 {Nijboer,F (2561)-Kleijn,C (2383)/Groningen 2009/CBM 134 Extra/1-0 (38)}) (16... d5) 17. Bxf4 exf4 18. Nd4 Qb6 (18... Qc5) 19. Rg2 Rfd8 20. Nxe6 (20. Nf5) 20... Qxf2 21. Rxf2 fxe6 22. h4 Rc5 23. Nb5 $1 {[%csl Gb5]} Nc6 24. Bh3 $16 {[%csl Re6]} Kf7 25. Rfd2 d5 $6 (25... h6) 26. exd5 exd5 27. Nc7 $40 {[%csl Rd5]} Rc4 $2 28. Be6+ Kg6 29. Nxd5 Rxd5 30. Rxd5 Rxa4 31. Rd7 Rb4 32. Bd5 Bf8 33. Bf7+ {[%csl Rg6]} Kf5 34. R1d5+ Ne5 35. Rxe5+ 1-0

[Event "EU-ch 12th"]
[Site "Aix les Bains"]
[Date "2011.03.26"]
[Round "5"]
[White "Zhigalko, Sergei"]
[Black "Balogh, Csaba"]
[Result "1-0"]
[ECO "C45"]
[WhiteElo "2680"]
[BlackElo "2601"]
[Annotator "ChessBase II"]
[PlyCount "87"]
[EventDate "2011.03.22"]
[EventType "swiss"]
[EventRounds "11"]
[EventCountry "FRA"]
[SourceTitle "CBM 142 Extra"]
[Source "ChessBase"]
[SourceDate "2011.06.27"]
[SourceVersion "1"]
[SourceVersionDate "2011.06.27"]
[SourceQuality "1"]
[TimeControl "40/5400+30:1800+30"]

1. e4 e5 2. Nf3 Nc6 3. d4 exd4 4. Nxd4 Nf6 5. Nxc6 bxc6 6. e5 Qe7 7. Qe2 Nd5 8. c4 Nb6 9. Nd2 a5 10. b3 a4 11. Bb2 axb3 12. axb3 Rxa1+ 13. Bxa1 Qa3 14. Qd1 Bb4 15. Bd3 Qa5 16. Ke2 O-O ({RR} 16... d6 17. Nf3 Bg4 18. Qc2 dxe5 19. Rd1 g6 20. Be4 O-O 21. h3 Bxf3+ 22. Bxf3 Qc5 23. Qe4 Ra8 24. Kf1 f6 25. Bb2 Ra2 26. Rd8+ Kg7 27. Qb1 Ra7 28. Qe4 Ra2 29. Qb1 Ra7 30. Qe4 {[%emt 0:00:32] 1/2-1/2 Danin,A (2538) -Semcesen,D (2480)/Pardubice 2011/Mega2011 Update}) 17. Qc2 d6 $146 ({RR} 17... d5 18. Bd4 dxc4 19. bxc4 Bxd2 20. Qxd2 Qxd2+ 21. Kxd2 Be6 22. Kc3 Na4+ 23. Kb4 Rd8 24. Ra1 c5+ 25. Kxa4 Rxd4 26. Kb5 Kf8 27. Ra3 Rh4 28. h3 Rh5 29. f4 Rh4 30. f5 Bd7+ 31. Kxc5 Ke7 32. Ra7 {Dochev,D (2295)-Vajda,A (2180)/Ankara 1993/TD/1-0 (50)}) 18. Bd4 (18. Bxh7+ Kh8 19. Be4 Nd7 $1 {[%cal Gd7e5]} (19... dxe5 20. Nf3 {[%cal Gf3e5,Ga1e5]})) 18... Bxd2 19. Qxd2 Qa3 20. Qb2 Qxb2+ 21. Bxb2 $14 {[%csl Gb2,Rb6,Gd3]} dxe5 22. Ra1 Bd7 23. Ra7 $44 Rc8 24. Bc3 {[%csl Gc3,Gd3]} g6 (24... f6) 25. Kd2 f6 26. f4 $1 {[%csl Gc3]} Kf7 27. fxe5 f5 28. Bd4 Ke6 29. Be2 Be8 30. Bf3 c5 31. Bxc5 Nd7 32. Bb7 Rb8 33. Bd4 Nxe5 34. Bd5+ $40 Kd6 35. Bxe5+ Kxe5 36. Rxc7 Kd6 (36... Rxb3 $2 37. Re7+) (36... Kd4 $5) 37. Rb7 Rxb7 38. Bxb7 f4 39. b4 g5 40. Bf3 Kc7 {[%csl Rc7]} 41. Kd3 Kb6 42. Kd4 $18 Bf7 43. Be2 h6 44. c5+ 1-0

[Event "EU-ch 12th"]
[Site "Aix les Bains"]
[Date "2011.03.27"]
[Round "6"]
[White "Savchenko, Boris"]
[Black "Zhigalko, Sergei"]
[Result "0-1"]
[ECO "B30"]
[WhiteElo "2616"]
[BlackElo "2680"]
[Annotator "ChessBase II"]
[PlyCount "120"]
[EventDate "2011.03.22"]
[EventType "swiss"]
[EventRounds "11"]
[EventCountry "FRA"]
[SourceTitle "CBM 142 Extra"]
[Source "ChessBase"]
[SourceDate "2011.06.27"]
[SourceVersion "1"]
[SourceVersionDate "2011.06.27"]
[SourceQuality "1"]
[TimeControl "40/5400+30:1800+30"]

1. e4 c5 2. Nf3 Nc6 3. Nc3 Nf6 4. Bb5 Qc7 (4... g6) 5. O-O Nd4 6. Nxd4 cxd4 7. Nd5 Nxd5 8. exd5 Qc5 9. c4 a6 10. b4 $1 (10. Ba4 b5 11. cxb5 Qxd5) 10... Qxb4 11. Ba4 g6 12. d3 Bg7 13. Bd2 Qa3 {Continuant de suivre une partie déjà jouée en 2009} 14. Rb1 $146 {La tentative d'amélioration des Blancs} (14. Bc1 Qd6 15. Qb3 O-O 16. Ba3 Qf6 17. d6 e5 {½-½ Kleijn,C (2377)-Zhigalko,S (2621)/Enschede 2009/CBM 131 Extra}) (14. Re1 O-O (14... Qxd3 15. Rxe7+ $1 {[%cal Gd2g5]}) 15. Qb3 Qxb3 16. axb3 {[%csl Ra4]} d6 (16... Re8 17. b4) 17. Rxe7 Bf6 18. Ree1 Bf5 $132 {[%csl Rd3]}) 14... Qxd3 15. d6 $1 {L'idée du sacrifice b1} e6 (15... exd6 $2 16. Re1+ Kf8 17. Bc2 Qxc4 18. Qf3 Qxc2 19. Qe2 $18 {[%csl Rf8]}) 16. c5 $44 {[%csl Rc8,Gd6]} b5 (16... O-O) 17. Bc2 (17. cxb6 $142 Rb8 (17... O-O 18. b7) 18. Qc1 $40 {[%cal Gd2h6,Gc1c7]}) 17... Qc4 18. Be4 Ra7 19. Ba5 $1 {[%csl Ra7][%cal Ga5b6]} f5 20. Bf3 e5 {[%csl Ge5,Gf5][%cal Ge5e4]} 21. Bb6 Rb7 22. Qd2 O-O 23. Be2 Qd5 24. a4 $1 $44 {[%csl Rb7,Rc8,Rd7]} Rxb6 $1 {La pression est trop forte et les Noirs ont besoin d'air pour libérer le c8} 25. cxb6 Bb7 {[%csl Gb7,Rg2]} 26. f3 {[%csl Re3]} e4 $1 {[%csl Gd4,Ge4]} 27. Bd1 {[%csl Rd5][%cal Gd1b3,Gb3g8]} (27. axb5 d3 {[%csl Gd3]} (27... axb5 28. Rxb5 Qxd6)) 27... Qxd6 28. axb5 axb5 29. fxe4 fxe4 30. Bb3+ Kh8 31. Rxf8+ Bxf8 $6 (31... Qxf8 32. Rf1 Qc5 33. Rf7 d3+ {[%csl Gd3]}) 32. Qf2 Kg7 33. Rf1 $132 {[%csl Rf7]} Be7 34. Qc2 $6 (34. Qf7+ $2 Kh6) (34. Qg3 $142 $5 Qxg3 35. Rf7+ Kh6 36. hxg3 Bc5 {[%cal Gc5b6,Gd4d3,Gc5g1]} 37. Rxd7 d3+ 38. Kf1 e3 $13 {[%csl Gd3,Ge3]}) 34... e3 35. Rf7+ Kh6 36. Qe2 {[%cal Ge2g4]} Qe5 37. Kf1 Be4 38. Bc2 Qxh2 39. Ke1 Qg3+ 40. Kd1 Bxc2+ (40... Bxg2) 41. Kxc2 Bd8 42. b7 Qc7+ 43. Kb2 Qc3+ 44. Ka2 Bc7 $17 {[%csl Rb8]} 45. g3 $2 (45. Rxd7 {Semblait mieux résister}) 45... Bxg3 46. Qf1 Qc4+ 47. Kb2 Qc3+ 48. Kb1 Qb3+ 49. Ka1 e2 50. Qh1+ Kg5 51. b8=Q Qd1+ 52. Kb2 Qd2+ 53. Kb3 Qe3+ 54. Ka2 Bxb8 55. Qd5+ Be5 56. Qg2+ Bg3 57. Qd5+ Qe5 58. Qxd7 e1=Q 59. Qd8+ Kg4 60. Qd7+ Qe6+ 0-1

[Event "EU-ch 12th"]
[Site "Aix les Bains"]
[Date "2011.03.28"]
[Round "7"]
[White "Zhigalko, Sergei"]
[Black "Lupulescu, Constantin"]
[Result "1/2-1/2"]
[ECO "B12"]
[WhiteElo "2680"]
[BlackElo "2626"]
[Annotator "ChessBase II"]
[PlyCount "111"]
[EventDate "2011.03.22"]
[EventType "swiss"]
[EventRounds "11"]
[EventCountry "FRA"]
[SourceTitle "CBM 142 Extra"]
[Source "ChessBase"]
[SourceDate "2011.06.27"]
[SourceVersion "1"]
[SourceVersionDate "2011.06.27"]
[SourceQuality "1"]
[TimeControl "40/5400+30:1800+30"]

1. e4 c6 {Après Andrey au début du tournoi, le Roumain va affronter son frère Sergei et ils vont répéter la même variante!} 2. d4 d5 3. e5 Bf5 4. Nf3 e6 5. Be2 c5 6. O-O {Changeant le premier de la partie de la ronde 3} (6. Be3 Qb6 {1-0 Zhigalko,A (2571)-Lupulescu,C (2626) EU-ch 12th Aix-Les-Bains 2011 (3)}) 6... Nc6 7. c3 Bg6 (7... cxd4) 8. a3 cxd4 $146 ({RR} 8... c4 9. g3 f6 10. exf6 Nxf6 11. Re1 Bd6 12. Ng5 Ne4 13. Nxe4 Bxe4 14. Bh5+ g6 15. Bf3 Bxf3 16. Qxf3 Kd7 17. Bh6 Re8 18. Nd2 Ne7 19. Qf7 Kc6 20. Bg5 Qd7 21. Qxe6 Qxe6 22. Rxe6 Nf5 23. Rae1 {Ehlvest,J (2650)-Glavina Rossi,P (2380)/Oviedo 1991/EXT 1997/½-½ (35)}) 9. cxd4 Nge7 10. b4 (10. Qb3 Qd7 11. Nc3 {[%cal Gc3b5,Gb5d6]}) 10... Nf5 11. Bb2 Be7 12. Nbd2 Qb6 {[%csl Rd4]} (12... O-O) 13. Qa4 O-O 14. b5 Nb8 (14... Qa5 $6 15. Qxa5 Nxa5 16. Bc3 Nc4 17. Nxc4 dxc4 18. Rfc1 (18. Bxc4 $2 Rac8) 18... Rfc8 19. Bb2 {[%csl Rc4]}) 15. Bc3 Qd8 16. Ba5 $36 b6 17. Bb4 Qd7 18. Bxe7 Nxe7 19. Qb4 a5 20. bxa6 Nxa6 21. Qxb6 Rfb8 22. Qa5 Nb4 23. axb4 Rxa5 24. bxa5 Nc6 25. Rfc1 Nb4 26. Rc3 h6 27. a6 {[%csl Ga6]} Qa7 28. h3 Nc2 29. Ra4 Qd7 30. Ra5 Qa7 31. Rac5 $36 {[%csl Gc3,Gc5]} Nb4 32. Rc7 Qb6 33. a7 Rf8 34. R3c5 (34. Rd7 $5 {[%cal Gc3c7]}) 34... Kh7 35. Rd7 Ra8 36. Rb5 $40 Qc6 37. Rbb7 Qa4 38. Nh4 $2 (38. Bb5 $1 Qa5 39. Nb3 Qa3 40. Rb8 Rxa7 41. Rdd8 {[%csl Rh7]}) 38... Nc6 39. Nxg6 Rxa7 40. Nf8+ Kg8 41. Rxa7 Nxa7 42. Rd8 Nc6 43. Rc8 Ne7 44. Rb8 Nc6 45. Re8 Nxd4 46. Nd7+ Kh7 47. Bd3+ Nf5 48. Nf8+ Kg8 49. Rd8 Qd1+ 50. Kh2 g6 51. Nxe6+ Kh7 52. Rd7 Kg8 53. Rd8+ Kh7 54. Rd7 Kg8 55. Rd8+ Kh7 56. Rd7 1/2-1/2

[Event "EU-ch 12th"]
[Site "Aix les Bains"]
[Date "2011.03.31"]
[Round "9"]
[White "Zhigalko, Sergei"]
[Black "Gabrielian, Artur"]
[Result "1-0"]
[ECO "B07"]
[WhiteElo "2680"]
[BlackElo "2532"]
[Annotator "ChessBase II"]
[PlyCount "65"]
[EventDate "2011.03.22"]
[EventType "swiss"]
[EventRounds "11"]
[EventCountry "FRA"]
[SourceTitle "CBM 142 Extra"]
[Source "ChessBase"]
[SourceDate "2011.06.27"]
[SourceVersion "1"]
[SourceVersionDate "2011.06.27"]
[SourceQuality "1"]
[TimeControl "40/5400+30:1800+30"]

1. e4 c5 2. c3 d6 {Trés populaire au début des années 90 mais cette ligne est beaucoup moins jouée aujourd'hui} 3. d4 Nf6 4. Bd3 (4. f3 {L'alternative} Nbd7 5. Be3 g6 6. Bd3 Bg7 7. Ne2 O-O 8. O-O Qc7 $132) 4... Qc7 (4... g6) 5. Nf3 g6 6. O-O Bg7 7. h3 (7. Re1 {[%cal Ge4e5]} O-O 8. Nbd2) 7... O-O 8. Bg5 (8. Bf4 Nbd7 9. Na3 a6 10. Re1 e5 11. Bh2 b5 12. Nc2 c4 13. Bf1 Bb7 14. d5 Nc5 15. Nd2 Bh6 16. f3 Qb6 17. Kh1 Nh5 18. Rb1 f5 19. exf5 gxf5 20. b3 cxb3 21. axb3 Rac8 22. c4 b4 23. g3 {Karpov,A (2337)-Gabrielian,A (2535)/Sukhumi 2006/½-½}) 8... Nc6 $146 ({RR} 8... Rd8 9. Nbd2 h6 10. Be3 a6 11. Qe2 Nbd7 12. b4 b5 13. bxc5 dxc5 14. Rac1 Bb7 15. e5 Nd5 16. e6 c4 17. Bb1 fxe6 18. Bxg6 e5 19. Bf5 exd4 20. Bxh6 Nf8 21. Be6+ Kh8 22. Bxg7+ Kxg7 23. Nxd4 {Vajda,L (2564)-Lerch,P (2306)/France 2007/1-0 (33)}) ({RR} 8... h6 9. Bh4 Nh5 10. dxc5 dxc5 11. Nbd2 Nc6 12. Nh2 Rd8 13. Qc2 Qd6 14. Bb5 Qxd2 15. Qxd2 Rxd2 16. Bxc6 bxc6 17. Bxe7 Rxb2 {0-1 Iacobacci,E-Garcia,R (2344)/Buenos Aires 2004}) 9. d5 Ne5 10. Nxe5 dxe5 11. c4 Nh5 {[%csl Gf4]} 12. Nc3 Nf4 13. Re1 a6 (13... h6 14. Bh4 g5 15. Bg3 a6) 14. Bf1 h6 15. Bh4 g5 $1 $132 {[%csl Gf4]} 16. Bg3 Bd7 17. f3 Rad8 (17... Rab8 18. Bf2 b5) 18. Bf2 f5 {Un coup actif mais qui donne une case forte "e4" pour les Blancs} (18... b6) 19. g3 Ng6 20. exf5 $1 {[%csl Ge4][%cal Gc3e4]} Bxf5 21. Ne4 b6 22. b4 $1 cxb4 23. Rb1 a5 24. a3 e6 25. axb4 exd5 26. cxd5 axb4 27. Rxb4 Qf7 28. Rxb6 Rxd5 $2 29. Qb3 {[%csl Rd5,Rf7,Rg8][%cal Gf1c4]} Be6 30. Bc4 $18 Rfd8 31. Rxe6 Qxe6 32. Nc3 Qxh3 33. Bxd5+ 1-0

[Event "Porticcio op 3rd"]
[Site "Grosseto Prugna"]
[Date "2016.06.25"]
[Round "1"]
[White "Daif, Sarah"]
[Black "Zhigalko, Sergei"]
[Result "0-1"]
[ECO "D35"]
[WhiteElo "1796"]
[BlackElo "2653"]
[PlyCount "50"]
[EventDate "2016.06.25"]
[EventType "swiss"]
[EventRounds "9"]
[EventCountry "FRA"]
[SourceTitle "EXT 2017"]
[Source "ChessBase"]
[SourceDate "2016.10.25"]
[SourceVersion "1"]
[SourceVersionDate "2016.10.25"]
[SourceQuality "1"]
[TimeControl "5400+30"]

1. Nf3 {[%emt 0:00:00]} d5 {[%emt 0:00:00]} 2. d4 {[%emt 0:00:04]} c6 {[%emt 0:00:00]} 3. c4 {[%emt 0:01:32]} e6 {[%emt 0:00:00]} 4. cxd5 {[%emt 0:02:10]} exd5 {[%emt 0:00:00]} 5. Nc3 {[%emt 0:02:24]} Bd6 {[%emt 0:01:01]} 6. e3 {[%emt 0:02:06]} Nf6 {[%emt 0:00:22]} 7. Bd3 {[%emt 0:03:24]} Qe7 {[%emt 0:00:56]} 8. Qc2 {[%emt 0:03:28]} O-O {[%emt 0:00:43]} 9. O-O {[%emt 0:04:17]} Re8 {[%emt 0:01:11]} 10. Nd2 {[%emt 0:07:58]} Na6 {[%emt 0:06:35]} 11. a3 {[%emt 0:03:29]} c5 {[%emt 0:00:22]} 12. Bxa6 {[%emt 0:04:41]} cxd4 {[%emt 0:06:10]} 13. Bb5 {[%emt 0:11:03]} dxc3 {[%emt 0:00:30]} 14. bxc3 {[%emt 0:00:30]} Rd8 {[%emt 0:00:57]} 15. Nf3 {[%emt 0:11:08]} Ne4 {[%emt 0:00:30]} 16. Bd3 {[%emt 0:00:30]} Bd7 {[%emt 0:00:30]} 17. c4 {[%emt 0:06:17]} Rac8 {[%emt 0:04:19]} 18. Qb1 {[%emt 0:03:52]} Bf5 {[%emt 0:00:39]} 19. cxd5 {[%emt 0:06:11]} Nc3 {[%emt 0:00:46]} 20. Qc2 {[%emt 0:00:28]} Nxd5 {[%emt 0:00:46]} 21. Qd2 Nxe3 {[%emt 0:07:22]} 22. Qxe3 {[%emt 0:01:47]} Bxd3 {[%emt 0:00:42]} 23. Rd1 {[%emt 0:03:26]} Qf6 {[%emt 0:08:32]} 24. Ra2 {[%emt 0:01:51]} Bc5 {[%emt 0:00:33]} 25. Qe5 {[%emt 0:01:28]} Qxe5 {[%emt 0:03:35]} 0-1

[Event "Porticcio op 3rd"]
[Site "Grosseto Prugna"]
[Date "2016.06.26"]
[Round "2"]
[White "Zhigalko, Sergei"]
[Black "Malassagne, Raphael"]
[Result "1-0"]
[ECO "B12"]
[WhiteElo "2653"]
[BlackElo "2163"]
[PlyCount "79"]
[EventDate "2016.06.25"]
[EventType "swiss"]
[EventRounds "9"]
[EventCountry "FRA"]
[SourceTitle "EXT 2017"]
[Source "ChessBase"]
[SourceDate "2016.10.25"]
[SourceVersion "1"]
[SourceVersionDate "2016.10.25"]
[SourceQuality "1"]
[TimeControl "5400+30"]

1. e4 c6 2. d4 d5 3. e5 c5 4. Nf3 Nc6 5. dxc5 Bg4 6. c3 e6 7. Be3 Nge7 8. Nbd2 g6 9. h3 Bxf3 10. Nxf3 Bg7 11. Bb5 O-O 12. Bxc6 Nxc6 13. Bd4 Qc7 14. Qe2 b6 15. cxb6 axb6 16. O-O Ra5 17. Rfe1 Rfa8 18. a3 R5a6 19. Rad1 Na5 20. Nh2 Qc4 21. Ng4 Qxe2 22. Rxe2 Nc4 23. f4 h5 24. Ne3 Nxe3 25. Bxe3 Ra4 26. Bxb6 Rxf4 27. Bd4 g5 28. Rf1 Rxf1+ 29. Kxf1 Kh7 30. g4 Kg6 31. Kg2 Ra4 32. Rf2 hxg4 33. hxg4 Bh8 34. Kf1 Bg7 35. Ke1 Bf8 36. Kd2 Be7 37. Kc2 Ra8 38. Kb3 Rh8 39. a4 Rh1 40. Ka2 1-0